fUSD/lending_fUSD_20250120
["ID","MTS","AMOUNT","RATE_DAILY","PERIOD"]
[349714641,1737390644767,-31269.26980576,0.00020818,2]
[349714643,1737390644777,-500.0,0.00020818,2]
[349714645,1737390644786,-500.0,0.00020818,2]
[349714647,1737390644798,-500.0,0.00020818,2]
[349714649,1737390644808,-500.0,0.00020818,2]
[349714651,1737390644819,-500.0,0.00020818,2]
[349714653,1737390644828,-500.0,0.00020818,2]
[349714655,1737390644838,-500.0,0.00020818,2]
[349714657,1737390644848,-500.0,0.00020818,2]
[349714660,1737390644858,-500.0,0.00020818,2]
[349714662,1737390644867,-500.0,0.00020818,2]
[349714664,1737390644877,-500.0,0.00020818,2]
[349714666,1737390644887,-500.0,0.00020818,2]
[349714668,1737390644896,-500.0,0.00020818,2]
[349714670,1737390644905,-500.0,0.00020818,2]
[349714672,1737390644915,-500.0,0.00020818,2]
[349714674,1737390644924,-500.0,0.00020818,2]
[349714676,1737390644934,-799.41501685,0.00020818,2]
[349714678,1737390644944,-500.0,0.00020818,2]
[349714680,1737390644953,-500.0,0.00020818,2]
[349714682,1737390644963,-500.0,0.00020818,2]
[349714684,1737390644972,-500.0,0.00020818,2]
[349714686,1737390644982,-500.0,0.00020818,2]
[349714688,1737390644992,-500.0,0.00020818,2]
[349714690,1737390645002,-500.0,0.00020818,2]
[349714692,1737390645014,-500.0,0.00020818,2]
[349714694,1737390645027,-500.0,0.00020821,2]
[349714696,1737390645038,-500.0,0.00020821,2]
[349714699,1737390645048,-571.91,0.00020821,2]
[349714701,1737390645059,-500.0,0.00020821,2]
[349714702,1737390645069,-613.47,0.00020821,2]
[349714704,1737390645078,-508.88,0.00020821,2]
[349714706,1737390645088,-794.31,0.00020821,2]
[349714709,1737390645100,-500.0,0.00020821,2]
[349714711,1737390645109,-500.0,0.00020821,2]
[349714713,1737390645119,-741.64,0.00020821,2]
[349714715,1737390645129,-201.02,0.00020821,2]
[349714717,1737390645138,-500.0,0.00020821,2]
[349714719,1737390645148,-895.91,0.00020821,2]
[349714721,1737390645157,-1169.56,0.00020821,2]
[349714723,1737390645167,-500.0,0.00020821,2]
[349714725,1737390645177,-1039.98,0.00020821,2]
[349714727,1737390645187,-500.0,0.00020821,2]
[349714729,1737390645197,-500.0,0.00020821,2]
[349714731,1737390645207,-600.28,0.00020821,2]
[349714733,1737390645216,-779.49,0.00020821,2]
[349714735,1737390645225,-288.998349,0.00020821,2]
[349714737,1737390645234,-500.0,0.00020821,2]
[349714739,1737390645243,-561.14,0.00020821,2]
[349714741,1737390645254,-863.71,0.00020821,2]
[349714743,1737390645263,-500.0,0.00020821,2]
[349714745,1737390645272,-500.0,0.00020821,2]
[349714747,1737390645282,-500.0,0.00020821,2]
[349714749,1737390645291,-500.0,0.00020992,2]
[349714751,1737390645303,-500.0,0.00020992,2]
[349714753,1737390645317,-500.0,0.00020992,2]
[349714755,1737390645330,-500.0,0.00020992,2]
[349714757,1737390645340,-500.0,0.00020992,2]
[349714759,1737390645350,-537.88,0.00020992,2]
[349714761,1737390645361,-500.0,0.00020992,2]
[349714763,1737390645371,-150.482952,0.00020992,2]
[349714765,1737390645383,-500.0,0.00020992,2]
[349714767,1737390645392,-500.0,0.00020992,2]
[349714769,1737390645403,-1082.14,0.00020992,2]
[349714771,1737390645418,-700.18,0.00020992,2]
[349714773,1737390645428,-500.0,0.00020992,2]
[349714775,1737390645438,-500.0,0.00020992,2]
[349714777,1737390645448,-591.05,0.00020992,2]
[349714778,1737390645458,-784.03,0.00020992,2]
[349714780,1737390645468,-561.5,0.00020992,2]
[349714782,1737390645478,-500.0,0.00020992,2]
[349714784,1737390645487,-889.63,0.00020992,2]
[349714786,1737390645497,-500.0,0.00020992,2]
[349714789,1737390645508,-520.61,0.00020992,2]
[349714791,1737390645517,-1145.37,0.00020992,2]
[349714800,1737390645593,-500.0,0.00020992,2]
[349714805,1737390645608,-500.0,0.00020992,2]
[349714808,1737390645618,-500.0,0.00020992,2]
[349714811,1737390645627,-293.47535025,0.00020992,2]
[349714813,1737390645638,-552.02,0.00020992,2]
[349714816,1737390645647,-500.0,0.00020992,2]
[349714819,1737390645657,-775.14,0.00020992,2]
[349714822,1737390645667,-500.0,0.00020992,2]
[349714825,1737390645677,-1471.06,0.00020992,2]
[349714827,1737390645687,-500.0,0.00020992,2]
[349714830,1737390645697,-882.24,0.00020992,2]
[349714832,1737390645707,-566.47,0.00020992,2]
[349714834,1737390645717,-811.81,0.00020992,2]
[349714837,1737390645727,-500.0,0.00020992,2]
[349714839,1737390645737,-541.7,0.00020992,2]
[349714841,1737390645747,-1491.88,0.00020992,2]
[349714843,1737390645756,-500.0,0.00020992,2]
[349714845,1737390645766,-152.0,0.00020995,3]
[349714847,1737390645775,-28965.13675677,0.00021,3]
[349714873,1737390645943,-927.61514,0.00021,3]
[349714876,1737390645955,-1650.0,0.00021,3]
[349714890,1737390646120,-46969.30792615,0.00021,3]
[349714891,1737390646131,-753.57,0.00021,3]
[349714892,1737390646151,-2077.6756,0.00021,3]
[349714893,1737390646167,-1157.31704257,0.00021,3]
[349714894,1737390646178,-17499.37753451,0.00021,3]
[349714895,1737390646189,-597.82415799,0.00021011,2]
[349714896,1737390646199,-283.03124019,0.00021011,2]
[349714897,1737390646210,-500.0,0.00021084,2]
[349714898,1737390646220,-153.25879572,0.00021084,2]
[349714899,1737390646229,-500.0,0.00021084,2]
[349714900,1737390646239,-587.57604816,0.00021084,2]
[349714901,1737390646248,-500.0,0.00021084,2]
[349714902,1737390646258,-436.00439702,0.00021084,2]
[349714903,1737390646274,-63.99560298,0.00021084,2]
[349714904,1737390646284,-500.0,0.00021084,2]
[349714905,1737390646294,-500.0,0.00021084,2]
[349714906,1737390646304,-500.0,0.00021084,2]
[349714907,1737390646315,-429.34050155,0.00021084,2]
[349714908,1737390646324,-104.06389547,0.00021084,2]
[349714909,1737390646340,-395.93610453,0.00021084,2]
[349714910,1737390646349,-544.32,0.00021084,2]
[349714911,1737390646358,-571.49,0.00021084,2]
[349714912,1737390646368,-500.0,0.00021084,2]
[349714913,1737390646378,-503.61,0.00021084,2]
[349714914,1737390646387,-500.0,0.00021084,2]
[349714915,1737390646396,-729.83,0.00021084,2]
[349714916,1737390646406,-320.3454117,0.00021084,2]
[349714917,1737390646416,-500.0,0.00021084,2]
[349714918,1737390646425,-500.0,0.00021084,2]
[349714919,1737390646435,-500.0,0.00021084,2]
[349714920,1737390646445,-500.0,0.00021084,2]
[349714921,1737390646454,-500.0,0.00021084,2]
[349714922,1737390646464,-500.0,0.00021084,2]
[349714923,1737390646474,-500.0,0.00021084,2]
[349714924,1737390646484,-500.0,0.00021084,2]
[349714925,1737390646494,-500.0,0.00021084,2]
[349714926,1737390646504,-500.0,0.00021084,2]
[349714927,1737390646513,-500.0,0.00021084,2]
[349714928,1737390646523,-500.0,0.00021084,2]
[349714929,1737390646532,-500.0,0.00021084,2]
[349714930,1737390646542,-500.0,0.00021084,2]
[349714931,1737390646551,-500.0,0.00021084,2]
[349714932,1737390646562,-500.0,0.00021084,2]
[349714933,1737390646571,-804.88,0.00021084,2]
[349714934,1737390646581,-1325.08,0.00021084,2]
[349714935,1737390646590,-273.74747251,0.00021084,2]
[349714936,1737390646601,-500.0,0.00021084,2]
[349714937,1737390646611,-500.0,0.00021084,2]
[349714938,1737390646622,-500.0,0.00021084,2]
[349714939,1737390646632,-500.0,0.00021084,2]
[349714940,1737390646641,-500.0,0.00021084,2]
[349714941,1737390646651,-500.0,0.00021084,2]
[349714942,1737390646660,-897.59,0.00021084,2]
[349714943,1737390646670,-500.0,0.00021084,2]
[349714944,1737390646680,-500.0,0.00021084,2]
[349714945,1737390646689,-500.0,0.00021084,2]
[349714946,1737390646698,-500.0,0.00021084,2]
[349714948,1737390646708,-559.91395837,0.00021084,2]
[349714950,1737390646718,-500.0,0.00021084,2]
[349714952,1737390646728,-536.54,0.00021084,2]
[349714954,1737390646739,-874.17,0.00021084,2]
[349714956,1737390646749,-500.0,0.00021084,2]
[349714957,1737390646759,-500.0,0.00021084,2]
[349714958,1737390646769,-1000.0,0.00021084,2]
[349714959,1737390646779,-500.0,0.00021084,2]
[349714960,1737390646791,-850.45,0.00021084,2]
[349714961,1737390646802,-500.0,0.00021085,2]
[349714963,1737390646811,-500.0,0.00021085,2]
[349714964,1737390646822,-500.0,0.00021085,2]
[349714965,1737390646832,-500.0,0.00021085,2]
[349714966,1737390646841,-500.0,0.00021085,2]
[349714967,1737390646851,-500.0,0.00021085,2]
[349714968,1737390646861,-500.0,0.00021092,2]
[349714969,1737390646871,-267.08841891,0.00021092,2]
[349714970,1737390646880,-500.0,0.00021092,2]
[349714971,1737390646890,-500.0,0.00021092,2]
[349714972,1737390646900,-500.0,0.00021092,2]
[349714973,1737390646909,-546.17,0.00021092,2]
[349714974,1737390646919,-500.0,0.00021092,2]
[349714975,1737390646930,-517.53324149,0.00021092,2]
[349714976,1737390646939,-500.0,0.00021092,2]
[349714977,1737390646949,-500.0,0.00021092,2]
[349714978,1737390646959,-500.0,0.00021092,2]
[349714979,1737390646967,-500.0,0.00021092,2]
[349714980,1737390646978,-500.0,0.00021092,2]
[349714981,1737390646987,-200.26495218,0.00021092,2]
[349714982,1737390646997,-500.0,0.00021092,2]
[349714983,1737390647009,-500.0,0.00021092,2]
[349714984,1737390647024,-500.0,0.00021092,2]
[349714985,1737390647033,-500.0,0.00021092,2]
[349714986,1737390647043,-500.0,0.00021092,2]
[349714987,1737390647054,-500.0,0.00021092,2]
[349714988,1737390647065,-500.0,0.00021092,2]
[349714989,1737390647075,-500.0,0.00021092,2]
[349714990,1737390647086,-500.0,0.00021092,7]
[349714991,1737390647097,-240.22347194,0.00021092,2]
[349714992,1737390647106,-500.0,0.00021092,2]
[349714993,1737390647116,-500.0,0.00021092,2]
[349714994,1737390647125,-500.0,0.00021092,2]
[349714995,1737390647135,-1003.23,0.00021092,2]
[349714996,1737390647144,-637.63,0.00021092,2]
[349714997,1737390647154,-500.0,0.00021092,2]
[349714998,1737390647163,-500.0,0.00021092,2]
[349714999,1737390647173,-500.0,0.00021092,2]
[349715000,1737390647183,-500.0,0.00021092,2]
[349715001,1737390647193,-500.0,0.00021092,2]
[349715002,1737390647202,-500.0,0.00021092,2]
[349715003,1737390647211,-434.56252437,0.00021092,2]
[349715004,1737390647233,-65.43747563,0.00021092,2]
[349715005,1737390647242,-500.0,0.00021092,2]
[349715006,1737390647253,-434.97500564,0.00021092,2]
[349715007,1737390647265,-65.02499436,0.00021092,2]
[349715008,1737390647275,-500.0,0.00021092,2]
[349715009,1737390647285,-639.92,0.00021092,2]
[349715010,1737390647295,-515.67491697,0.00021092,2]
[349715011,1737390647305,-124.61305442,0.00021092,2]
[349715012,1737390647321,-375.38694558,0.00021092,2]
[349715013,1737390647330,-276.24999539,0.00021092,2]
[349715014,1737390647341,-500.0,0.00021092,2]
[349715015,1737390647351,-345.34981949,0.00021092,2]
[349715016,1737390647364,-154.65018051,0.00021092,2]
[349715017,1737390647374,-500.0,0.00021092,2]
[349715018,1737390647384,-500.0,0.00021095,2]
[349715019,1737390647395,-500.0,0.00021095,2]
[349715020,1737390647405,-500.0,0.00021095,2]
[349715021,1737390647415,-613.47,0.00021095,2]
[349715022,1737390647425,-508.88,0.00021095,2]
[349715023,1737390647435,-794.31,0.00021095,2]
[349715024,1737390647445,-500.0,0.00021095,2]
[349715025,1737390647455,-500.0,0.00021095,2]
[349715026,1737390647465,-741.64,0.00021095,2]
[349715027,1737390647475,-500.0,0.00021095,2]
[349715028,1737390647485,-895.91,0.00021095,2]
[349715029,1737390647495,-1169.56,0.00021095,2]
[349715030,1737390647506,-275.88,0.00021095,2]
[349715033,1737390647515,-1039.98,0.00021095,2]
[349715036,1737390647525,-500.0,0.00021095,2]
[349715037,1737390647535,-500.0,0.00021095,2]
[349715038,1737390647546,-779.49,0.00021095,2]
[349715039,1737390647555,-500.0,0.00021095,2]
[349715040,1737390647568,-561.14,0.00021095,2]
[349715041,1737390647578,-288.998349,0.00021095,2]
[349715042,1737390647588,-863.71,0.00021095,2]
[349715043,1737390647599,-156.451378,0.00021095,2]
[349715044,1737390647608,-500.0,0.00021095,2]
[349715045,1737390647618,-500.0,0.00021095,2]
[349715046,1737390647628,-500.0,0.00021095,2]
[349715047,1737390647637,-597.82415799,0.00021233,2]
[349715048,1737390647648,-283.03124019,0.00021233,2]
[349715049,1737390647658,-500.0,0.00021266,2]
[349715050,1737390647677,-161.24519665,0.00021266,2]
[349715051,1737390647688,-500.0,0.00021266,2]
[349715052,1737390647698,-259.31556256,0.00021266,2]
[349715053,1737390647708,-500.0,0.00021266,2]
[349715054,1737390647718,-537.88,0.00021266,2]
[349715055,1737390647730,-500.0,0.00021266,2]
[349715056,1737390647740,-150.482952,0.00021266,2]
[349715057,1737390647752,-500.0,0.00021266,2]
[349715058,1737390647762,-1082.14,0.00021266,2]
[349715059,1737390647772,-700.18,0.00021266,2]
[349715060,1737390647782,-500.0,0.00021266,2]
[349715061,1737390647792,-500.0,0.00021266,2]
[349715062,1737390647803,-591.05,0.00021266,2]
[349715063,1737390647815,-784.03,0.00021266,2]
[349715064,1737390647826,-561.5,0.00021266,2]
[349715065,1737390647837,-500.0,0.00021266,2]
[349715066,1737390647847,-889.63,0.00021266,2]
[349715067,1737390647857,-500.0,0.00021266,2]
[349715068,1737390647868,-520.61,0.00021266,2]
[349715069,1737390647878,-1145.37,0.00021266,2]
[349715070,1737390647888,-245.52,0.00021266,2]
[349715071,1737390647898,-500.0,0.00021266,2]
[349715072,1737390647908,-186.545732,0.00021266,2]
[349715073,1737390647918,-500.0,0.00021266,2]
[349715074,1737390647928,-552.02,0.00021266,2]
[349715075,1737390647938,-715.23307589,0.00021266,2]
[349715076,1737390647948,-500.0,0.00021266,2]
[349715077,1737390647957,-775.14,0.00021266,2]
[349715078,1737390647968,-500.0,0.00021266,2]
[349715079,1737390647979,-1471.06,0.00021266,2]
[349715080,1737390647988,-500.0,0.00021266,2]
[349715081,1737390647999,-882.24,0.00021266,2]
[349715082,1737390648009,-566.47,0.00021266,2]
[349715083,1737390648020,-811.81,0.00021266,2]
[349715084,1737390648030,-500.0,0.00021266,2]
[349715085,1737390648041,-541.7,0.00021266,2]
[349715086,1737390648051,-1491.88,0.00021266,2]
[349715087,1737390648064,-197.8860047,0.00021266,2]
[349715088,1737390648074,-500.0,0.00021358,2]
[349715089,1737390648084,-500.0,0.00021358,2]
[349715090,1737390648095,-500.0,0.00021358,2]
[349715091,1737390648105,-500.0,0.00021358,2]
[349715092,1737390648115,-500.0,0.00021358,2]
[349715093,1737390648125,-500.0,0.00021358,2]
[349715094,1737390648136,-500.0,0.00021358,2]
[349715095,1737390648146,-602.58779439,0.00021358,2]
[349715096,1737390648156,-544.32,0.00021358,2]
[349715097,1737390648166,-571.49,0.00021358,2]
[349715098,1737390648176,-500.0,0.00021358,2]
[349715099,1737390648186,-503.61,0.00021358,2]
[349715100,1737390648196,-500.0,0.00021358,2]
[349715101,1737390648206,-729.83,0.00021358,2]
[349715102,1737390648216,-500.0,0.00021358,2]
[349715103,1737390648226,-500.0,0.00021358,2]
[349715104,1737390648236,-500.0,0.00021358,2]
[349715105,1737390648247,-500.0,0.00021358,2]
[349715106,1737390648257,-500.0,0.00021358,2]
[349715107,1737390648268,-500.0,0.00021358,2]
[349715108,1737390648278,-500.0,0.00021358,2]
[349715109,1737390648288,-500.0,0.00021358,2]
[349715110,1737390648299,-500.0,0.00021358,2]
[349715111,1737390648310,-500.0,0.00021358,2]
[349715112,1737390648323,-500.0,0.00021358,2]
[349715113,1737390648334,-500.0,0.00021358,2]
[349715114,1737390648344,-500.0,0.00021358,2]
[349715115,1737390648355,-500.0,0.00021358,2]
[349715116,1737390648365,-500.0,0.00021358,2]
[349715117,1737390648376,-804.88,0.00021358,2]
[349715118,1737390648390,-1325.08,0.00021358,2]
[349715119,1737390648401,-366.23739451,0.00021358,2]
[349715120,1737390648412,-500.0,0.00021358,2]
[349715121,1737390648423,-500.0,0.00021358,2]
[349715122,1737390648433,-500.0,0.00021358,2]
[349715123,1737390648444,-500.0,0.00021358,2]
[349715124,1737390648456,-500.0,0.00021358,2]
[349715125,1737390648467,-897.59,0.00021358,2]
[349715126,1737390648478,-500.0,0.00021358,2]
[349715127,1737390648489,-500.0,0.00021358,2]
[349715128,1737390648500,-500.0,0.00021358,2]
[349715129,1737390648511,-500.0,0.00021358,2]
[349715130,1737390648521,-500.0,0.00021358,2]
[349715131,1737390648533,-874.17,0.00021358,2]
[349715132,1737390648543,-500.0,0.00021358,2]
[349715133,1737390648554,-1000.0,0.00021358,2]
[349715134,1737390648572,-491.07,0.00021358,2]
[349715135,1737390648584,-850.45,0.00021358,2]
[349715136,1737390648595,-500.0,0.00021359,2]
[349715137,1737390648607,-500.0,0.00021359,2]
[349715138,1737390648619,-500.0,0.00021359,2]
[349715139,1737390648630,-443.83697296,0.00021359,2]
[349715140,1737390648642,-265.14002644,0.00021359,2]
[349715141,1737390648653,-500.0,0.00021359,2]
[349715142,1737390648663,-420.3069494,0.00021366,2]
[349715143,1737390648674,-500.0,0.00021366,2]
[349715144,1737390648685,-500.0,0.00021366,2]
[349715145,1737390648696,-500.0,0.00021366,2]
[349715146,1737390648708,-519.54507156,0.00021366,2]
[349715147,1737390648722,-500.0,0.00021366,2]
[349715148,1737390648733,-500.0,0.00021366,2]
[349715149,1737390648743,-500.0,0.00021366,2]
[349715150,1737390648754,-500.0,0.00021366,2]
[349715151,1737390648765,-500.0,0.00021366,2]
[349715152,1737390648775,-500.0,0.00021366,2]
[349715153,1737390648787,-500.0,0.00021366,2]
[349715154,1737390648801,-500.0,0.00021366,2]
[349715155,1737390648814,-500.0,0.00021366,7]
[349715156,1737390648826,-500.0,0.00021366,2]
[349715157,1737390648837,-500.0,0.00021366,2]
[349715158,1737390648848,-1003.23,0.00021366,2]
[349715159,1737390648860,-637.63,0.00021366,2]
[349715160,1737390648871,-500.0,0.00021366,2]
[349715161,1737390648882,-500.0,0.00021366,2]
[349715162,1737390648893,-251.49,0.00021366,2]
[349715163,1737390648904,-500.0,0.00021369,2]
[349715164,1737390648915,-500.0,0.00021369,2]
[349715165,1737390648927,-500.0,0.00021369,2]
[349715166,1737390648938,-613.47,0.00021369,2]
[349715167,1737390648950,-508.88,0.00021369,2]
[349715168,1737390648960,-794.31,0.00021369,2]
[349715169,1737390648972,-500.0,0.00021369,2]
[349715170,1737390648983,-500.0,0.00021369,2]
[349715171,1737390648993,-741.64,0.00021369,2]
[349715172,1737390649004,-500.0,0.00021369,2]
[349715173,1737390649015,-895.91,0.00021369,2]
[349715174,1737390649029,-1169.56,0.00021369,2]
[349715175,1737390649040,-1039.98,0.00021369,2]
[349715176,1737390649051,-500.0,0.00021369,2]
[349715177,1737390649065,-500.0,0.00021369,2]
[349715178,1737390649076,-779.49,0.00021369,2]
[349715179,1737390649086,-500.0,0.00021369,2]
[349715180,1737390649098,-561.14,0.00021369,2]
[349715181,1737390649110,-288.998349,0.00021369,2]
[349715182,1737390649120,-863.71,0.00021369,2]
[349715183,1737390649131,-500.0,0.00021369,2]
[349715184,1737390649143,-500.0,0.00021369,2]
[349715185,1737390649154,-500.0,0.00021369,2]
[349715186,1737390649164,-292.64,0.00021401,30]
[349715187,1737390649175,-2443.881,0.00021438,2]
[349715188,1737390649185,-150.0,0.00021438,2]
[349715189,1737390649196,-3901.0,0.00021438,2]
[349715190,1737390649206,-1175.0,0.00021438,2]
[349715191,1737390649217,-168.75,0.00021446,2]
[349715192,1737390649227,-600.0,0.00021452,2]
[349715193,1737390649237,-597.82415799,0.00021456,2]
[349715194,1737390649248,-283.03124019,0.00021456,2]
[349715195,1737390649259,-253.27721405,0.0002154,2]
[349715196,1737390649311,-246.72278595,0.0002154,2]
[349715197,1737390649324,-500.0,0.0002154,2]
[349715198,1737390649334,-500.0,0.0002154,2]
[349715199,1737390649345,-537.88,0.0002154,2]
[349715200,1737390649356,-500.0,0.0002154,2]
[349715201,1737390649367,-500.0,0.0002154,2]
[349715202,1737390649378,-1082.14,0.0002154,2]
[349715203,1737390649388,-700.18,0.0002154,2]
[349715204,1737390649399,-500.0,0.0002154,2]
[349715205,1737390649409,-500.0,0.0002154,2]
[349715206,1737390649419,-591.05,0.0002154,2]
[349715207,1737390649430,-784.03,0.0002154,2]
[349715208,1737390649440,-561.5,0.0002154,2]
[349715209,1737390649450,-500.0,0.0002154,2]
[349715210,1737390649460,-889.63,0.0002154,2]
[349715211,1737390649471,-500.0,0.0002154,2]
[349715212,1737390649484,-520.61,0.0002154,2]
[349715213,1737390649494,-1145.37,0.0002154,2]
[349715214,1737390649504,-500.0,0.0002154,2]
[349715215,1737390649514,-186.545732,0.0002154,2]
[349715216,1737390649524,-500.0,0.0002154,2]
[349715217,1737390649535,-552.02,0.0002154,2]
[349715218,1737390649544,-500.0,0.0002154,2]
[349715219,1737390649555,-775.14,0.0002154,2]
[349715220,1737390649566,-500.0,0.0002154,2]
[349715221,1737390649576,-1471.06,0.0002154,2]
[349715222,1737390649586,-500.0,0.0002154,2]
[349715223,1737390649597,-882.24,0.0002154,2]
[349715224,1737390649607,-566.47,0.0002154,2]
[349715225,1737390649617,-811.81,0.0002154,2]
[349715226,1737390649627,-254.5,0.0002154,2]
[349715227,1737390649639,-541.7,0.0002154,2]
[349715228,1737390649809,-1491.88,0.0002154,2]
[349715229,1737390649821,-158.17,0.00021556,2]
[349715230,1737390649830,-317.8950201,0.0002156,2]
[349715231,1737390649840,-500.0,0.00021632,2]
[349715232,1737390649849,-500.0,0.00021632,2]
[349715233,1737390649859,-239.15301742,0.00021632,2]
[349715234,1737390649868,-500.0,0.00021632,2]
[349715235,1737390649877,-500.0,0.00021632,2]
[349715236,1737390649887,-500.0,0.00021632,2]
[349715237,1737390649897,-500.0,0.00021632,2]
[349715238,1737390649907,-544.32,0.00021632,2]
[349715239,1737390649916,-97.59995953,0.00021632,2]
[349715240,1737390649929,-473.89004047,0.00021632,2]
[349715241,1737390649939,-500.0,0.00021632,2]
[349715242,1737390649948,-503.61,0.00021632,2]
[349715243,1737390649958,-164.43511036,0.00021632,2]
[349715244,1737390649967,-729.83,0.00021632,2]
[349715245,1737390649976,-500.0,0.00021632,2]
[349715246,1737390649986,-500.0,0.00021632,2]
[349715247,1737390649995,-500.0,0.00021632,2]
[349715248,1737390650006,-500.0,0.00021632,2]
[349715249,1737390650017,-500.0,0.00021632,2]
[349715250,1737390650026,-500.0,0.00021632,2]
[349715251,1737390650036,-500.0,0.00021632,2]
[349715252,1737390650046,-500.0,0.00021632,2]
[349715253,1737390650055,-500.0,0.00021632,2]
[349715254,1737390650072,-500.0,0.00021632,2]
[349715255,1737390650082,-283.33904747,0.00021632,2]
[349715256,1737390650094,-216.66095253,0.00021632,2]
[349715257,1737390650104,-391.93928369,0.00021632,2]
[349715258,1737390650116,-108.06071631,0.00021632,2]
[349715259,1737390650125,-500.0,0.00021632,2]
[349715260,1737390650135,-119.02497307,0.00021632,2]
[349715261,1737390650147,-380.97502693,0.00021632,2]
[349715262,1737390650156,-804.88,0.00021632,2]
[349715263,1737390650166,-1325.08,0.00021632,2]
[349715264,1737390650175,-500.0,0.00021632,2]
[349715265,1737390650185,-617.8968922,0.00021632,2]
[349715266,1737390650195,-648.38,0.00021632,2]
[349715267,1737390650204,-286.26,0.00021632,2]
[349715268,1737390650214,-500.0,0.00021632,2]
[349715269,1737390650224,-897.59,0.00021632,2]
[349715270,1737390650234,-427.72,0.00021632,2]
[349715271,1737390650244,-500.0,0.00021632,2]
[349715272,1737390650253,-500.0,0.00021632,2]
[349715273,1737390650263,-500.0,0.00021632,2]
[349715274,1737390650273,-500.0,0.00021632,2]
[349715275,1737390650283,-874.17,0.00021632,2]
[349715276,1737390650292,-530.1,0.00021632,2]
[349715277,1737390650302,-1000.0,0.00021632,2]
[349715278,1737390650311,-850.45,0.00021632,2]
[349715279,1737390650324,-500.0,0.00021633,2]
[349715280,1737390650333,-500.0,0.00021633,2]
[349715281,1737390650342,-500.0,0.00021633,2]
[349715282,1737390650352,-500.0,0.00021633,2]
[349715283,1737390650361,-500.0,0.0002164,2]
[349715284,1737390650371,-500.0,0.0002164,2]
[349715285,1737390650381,-507.09917656,0.0002164,2]
[349715286,1737390650391,-500.0,0.0002164,2]
[349715287,1737390650401,-500.0,0.0002164,2]
[349715288,1737390650410,-500.0,0.0002164,2]
[349715289,1737390650419,-500.0,0.0002164,2]
[349715290,1737390650429,-361.75046844,0.0002164,2]
[349715291,1737390650438,-309.38769607,0.0002164,2]
[349715292,1737390650448,-500.0,0.0002164,2]
[349715293,1737390650457,-1003.23,0.0002164,2]
[349715294,1737390650467,-637.63,0.0002164,2]
[349715295,1737390650477,-500.0,0.0002164,2]
[349715296,1737390650487,-376.98,0.0002164,2]
[349715297,1737390650497,-500.0,0.00021643,2]
[349715298,1737390650506,-42.24950298,0.00021643,2]
[349715299,1737390650520,-457.75049702,0.00021643,2]
[349715300,1737390650530,-500.0,0.00021643,2]
[349715301,1737390650540,-613.47,0.00021643,2]
[349715302,1737390650549,-508.88,0.00021643,2]
[349715303,1737390650560,-794.31,0.00021643,2]